Cogmind - Beta 16 @@@ ROGUE MODE // 2025.11.28 @ 20:29:14 Player: SilverswordXV Result: Destroyed by P-70 Sage with Tesla Rifle Performance ------------- Evolutions (5) 2500 Regions Visited (13) 2600 Robots Destroyed (43) 215 Value Destroyed (1279) 1279 Prototype IDs (8) 160 Alien Tech Used (0) 0 Bonus (254) 254 TOTAL SCORE: 7008 Bonus ------- Follower Combat Kills 254 Cogmind --------- Core Integrity 0/1000 Matter 8/300 Energy 26/100 System Corruption 6% Temperature Cool (0) Movement Core (50) Location -5/Factory Parts ------- > --- POWER (2) -------- (None) > --- PROPULSION (5) --- (None) > --- UTILITY (8) ------ Visual Processing Unit Advanced Signal Interpreter Terrain Scan Processor System Shield > --- WEAPON (2) ------- (None) > --- INVENTORY (5) ---- Nuclear Pulse Thruster Advanced Plasma Cannon Hypervelocity Coil Gun Advanced EMP Blaster Peak State ------------ > --- POWER ------------ Heavy Ion Engine Micro Fission Core > --- PROPULSION ------- Improved Cesium-ion Thruster Nuclear Pulse Thruster Nuclear Pulse Thruster Nuclear Pulse Thruster Field Propulsion Drive > --- UTILITY ---------- Small Storage Unit Visual Processing Unit Improved Sensor Array Advanced Signal Interpreter Advanced Terrain Scanner Terrain Scan Processor Cloaking Device System Shield > --- WEAPON ----------- Advanced Plasma Cannon Dirty Datajack > --- INVENTORY -------- Light Neutrino Core VTOL Module Improved Flight Unit Nuclear Pulse Thruster Hypervelocity Coil Gun Advanced EMP Blaster Dirty Datajack [Rating: 76] Favorites ----------- Power Heavy Ion Engine Engine Heavy Ion Engine Power Core Enhanced Nuclear Core Propulsion Improved Flight Unit Treads Light Treads Wheel Compact Wheel Flight Unit Improved Flight Unit Utility Small Storage Unit Device Improved Sensor Array Storage Small Storage Unit Processor Visual Processing Unit Hackware System Shield Protection Hardened Medium Armor Plating Weapon Heavy Assault Rifle Energy Gun Pulse Rifle Energy Cannon Advanced Plasma Cannon Ballistic Gun Heavy Assault Rifle Launcher Mini Grenade Launcher Special Melee Weapon Dirty Datajack Build | -11 -10 -9 -9 -8 -7 -7 -7 -6 -6 -6 -5 -5 -5 ------- Run | Yrd Mat Mat Sto Mat Fac Low Low Fac Low Low Fac Was Fac Slots Evolved 10 | . . 2 . 2 2 . . 2 . . 2 . . Power 1 | . . . . . . . . . . . 1 . . Propulsion 3 | . . 1 . 1 . . . 1 . . . . . Utility 6 | . . 1 . 1 2 . . 1 . . 1 . . Weapon . | . . . . . . . . . . . . . . Parts Attached 66 | 6 2 2 14 10 8 1 . 4 . . 7 . 12 Power 9 | 1 . . 2 2 2 . . . . . 1 . 1 Engine 5 | 1 . . 2 1 1 . . . . . . . . Core 4 | . . . . 1 1 . . . . . 1 . 1 Reactor . | . . . . . . . . . . . . . . Propulsion 20 | 2 . . 6 2 4 . . . . . 1 . 5 Treads 1 | . . . 1 . . . . . . . . . . Leg . | . . . . . . . . . . . . . . Wheel 8 | 2 . . 3 2 1 . . . . . . . . Hover . | . . . . . . . . . . . . . . Flight 11 | . . . 2 . 3 . . . . . 1 . 5 Utility 20 | 1 1 . 2 3 2 . . 4 . . 4 . 3 Device 11 | . . . 1 1 2 . . 3 . . 2 . 2 Storage 2 | 1 . . 1 . . . . . . . . . . Processor 5 | . 1 . . 1 . . . . . . 2 . 1 Hackware 1 | . . . . . . . . 1 . . . . . Protection 1 | . . . . 1 . . . . . . . . . Artifact . | . . . . . . . . . . . . . . Weapon 17 | 2 1 2 4 3 . 1 . . . . 1 . 3 Energy Gun 3 | . 1 . . 1 . 1 . . . . . . . Energy Cannon 2 | . . . 1 . . . . . . . . . 1 Ballistic Gun 8 | 2 . 2 2 2 . . . . . . . . . Ballistic Cannon . | . . . . . . . . . . . . . . Launcher 2 | . . . 1 . . . . . . . . . 1 Special Weapon . | . . . . . . . . . . . . . . Impact Weapon . | . . . . . . . . . . . . . . Slashing Weapon . | . . . . . . . . . . . . . . Piercing Weapon . | . . . . . . . . . . . . . . Special Melee Weapon 2 | . . . . . . . . . . . 1 . 1 Unidentified Prototypes 8 | . . . 2 1 2 . . . . . 1 . 2 Parts Lost 26 | . . . 4 4 . 2 . . . . . . 16 Power 5 | . . . 1 1 . . . . . . . . 3 Propulsion 12 | . . . 2 2 . 1 . . . . . . 7 Utility 4 | . . . . . . . . . . . . . 4 Weapon 5 | . . . 1 1 . 1 . . . . . . 2 Highest Loss Streak 10 | . . . 4 2 . 2 . . . . . . 10 To Critical Strikes . | . . . . . . . . . . . . . . Average Backups 6 | 2 4 6 6 7 7 8 8 8 8 7 6 4 6 Power 1 | . 1 2 2 1 . 1 1 1 1 . . . . Propulsion 1 | . 1 2 1 1 1 1 1 1 1 . . . 2 Utility 1 | . . . . 3 3 3 3 3 3 2 2 1 . Weapon 2 | . 1 2 1 1 2 3 3 3 3 1 1 2 2 Tool/Special . | . . . . . . . . . . . . . . Unused Backups 19 | . 1 1 4 2 1 . . 1 1 3 3 . 2 Power 3 | . . . 3 . . . . . . . . . . Propulsion 1 | . . . . 1 . . . . . . . . . Utility 5 | . . . . 1 1 . . . . 1 1 . 1 Weapon 10 | . 1 1 1 . . . . 1 1 2 2 . 1 Tool/Special . | . . . . . . . . . . . . . . Average Slot Usage (%) 71 | . 87 77 75 74 65 77 69 63 66 66 58 82 76 Engine 3 | . 14 11 6 3 1 . . . . 2 5 5 2 Core 2 | . . . . 4 3 7 7 6 6 3 . 5 3 Wheel 6 | . 28 22 15 15 . . . . . . . . . Flight 14 | . . . 7 1 20 29 23 20 20 20 17 23 20 Device 9 | . . . . 8 14 15 15 13 13 13 11 17 12 Storage 8 | . 14 11 14 9 7 7 7 6 6 6 5 5 4 Processor 13 | . 2 11 11 17 15 15 15 13 13 13 11 11 15 Hackware 2 | . . . . . . . . 3 6 6 5 5 5 Energy Gun 1 | . 9 3 . 4 . 1 . . . . . . . Ballistic Gun 5 | . 18 18 17 9 1 . . . . . . . . Peak Build Rating 76 | 6 9 10 14 23 33 38 29 34 34 35 57 56 76 Average Rating 27 | 4 6 9 10 19 28 33 29 30 34 34 34 56 54 On Entrance 25 | . 6 9 10 9 18 33 29 29 34 34 34 56 56 Avg Prop Armor Cover (%) 6 | . . . . . . . . . . . . . 6 Naked Turns . | . . . . . . . . . . . . . . Heaviest Build 31 | 13 15 16 24 24 15 20 15 15 15 15 22 22 31 Greatest Support 48 | 26 26 26 48 26 21 21 15 15 15 15 22 22 31 Greatest Overweight (x) 3 | . . . 1 1 1 . . . . . . . 3 Average Overweight (x) . | . . . . . . . . . . . . . . Largest Inventory Capacity 8 | 8 8 8 8 8 8 8 8 8 8 8 8 8 8 Average Capacity 7 | 6 8 8 8 8 8 8 8 8 8 8 8 8 7 Most Carried 8 | 3 6 8 8 8 8 8 8 8 8 8 8 4 8 Average Carried 6 | 2 4 6 6 7 7 8 8 8 7 7 6 4 6 Final Capacity 8 | 8 8 8 8 8 8 8 8 8 8 8 8 8 5 Final Carried 8 | 3 6 6 8 8 8 8 8 8 8 8 4 4 4 Class Distribution -------------------- 45% | Scout 21% | Mutant 10% | Scavenger-Mutant 9% | Scavenger-Skirmisher 7% | Ninja 3% | Commander-Mutant Dominant Class ---------------- Mutant | -10/Materials Mutant | -9/Materials Mutant | -9/Storage Scavenger-Skirmisher | -8/Materials Scout | -7/Factory Scout | -7/Lower Caves Scout | -7/Lower Caves Scout | -6/Factory Scout | -6/Lower Caves Scout | -6/Lower Caves Scout | -5/Factory Ninja | -5/Waste Ninja | -5/Factory Resources | -11 -10 -9 -9 -8 -7 -7 -7 -6 -6 -6 -5 -5 -5 ----------- Run | Yrd Mat Mat Sto Mat Fac Low Low Fac Low Low Fac Was Fac Matter Collected 1474 | 243 58 . 651 313 . 79 . 41 . 16 . . 73 Remotely . | . . . . . . . . . . . . . . Salvage Created 1639 | . 64 . 854 664 . . . . . . . . 57 Parts 118 | . 6 . 65 42 . . . . . . . . 5 Haulers Intercepted 2 | . . . 1 1 . . . . . . . . . Recyclers Shooed 3 | . . . 3 . . . . . . . . . . Parts Field Recycled . | . . . . . . . . . . . . . . Retrieved Matter . | . . . . . . . . . . . . . . Parts Self-Destructed 2 | . . . . . . . . . . 2 . . . Prevented 4 | . . . . . . 4 . . . . . . . Parts Restored . | . . . . . . . . . . . . . . Kills | -11 -10 -9 -9 -8 -7 -7 -7 -6 -6 -6 -5 -5 -5 ------- Run | Yrd Mat Mat Sto Mat Fac Low Low Fac Low Low Fac Was Fac Combat Hostiles Destroyed 31 | . 1 . 12 15 . . . . . . . . 3 Guns 24 | . 1 . 11 12 . . . . . . . . . Cannons 1 | . . . 1 . . . . . . . . . . AOE 6 | . . . . 3 . . . . . . . . 3 Classes Destroyed 12 | . 2 . 6 4 . . . . . . . . . Worker 2 | . . . . 1 . . . . . . . . 1 Builder 2 | . . . 1 . . . . . . . . . 1 Hauler 2 | . . . 1 1 . . . . . . . . . Recycler 3 | . . . 3 . . . . . . . . . . Watcher 3 | . 1 . 1 1 . . . . . . . . . Swarmer 7 | . . . . 4 . . . . . . . . 3 Grunt 13 | . 1 . 5 7 . . . . . . . . . Brawler 1 | . . . . 1 . . . . . . . . . Duelist 1 | . . . 1 . . . . . . . . . . Protector 1 | . . . 1 . . . . . . . . . . Sentry 7 | . . . 5 2 . . . . . . . . . Hunter 1 | . . . . 1 . . . . . . . . . Best Kill Streak 7 | . 1 . 6 7 . . . . . . . . 3 Combat Bots Only 4 | . 1 . 4 4 . . . . . . . . 3 Max Kills in Single Turn 3 | . 1 . 2 3 . . . . . . . . 3 Gunslinging . | . . . . . . . . . . . . . . Exploded 3 | . . . . 3 . . . . . . . . 3 Melee . | . . . . . . . . . . . . . . Uniques/NPCs Destroyed . | . . . . . . . . . . . . . . Combat | -11 -10 -9 -9 -8 -7 -7 -7 -6 -6 -6 -5 -5 -5 -------- Run | Yrd Mat Mat Sto Mat Fac Low Low Fac Low Low Fac Was Fac Hostile Shots Fired 364 | . 2 . 91 63 . 60 9 1 2 4 4 1 127 Missed 153 | . . . 31 19 . 38 6 . 2 2 . 1 54 Hits 211 | . 2 . 60 44 . 22 3 1 . 2 4 . 73 Melee 4 | . . . 2 2 . . . . . . . . . Projectile 207 | . 2 . 58 42 . 22 3 1 . 2 4 . 73 AOE 5 | . . . . . . . . . . . . . 5 Critical Strikes 7 | . . . 5 . . . . . . . 1 . 1 Part Disruptions 1 | . . . . . . . . . . . . . 1 Damage Taken 3814 | . 22 . 867 732 . 274 48 19 . 43 85 . 1724 Core 1548 | . . . 208 135 . 139 18 . . 43 23 . 982 Absorbed by Shields . | . . . . . . . . . . . . . . Core Remaining (%) 82 | 100 100 . 48 75 . . 77 . . 94 . . . Volleys Fired 143 | . 7 1 81 46 . . . . . . . . 8 Largest 2 | . 2 2 2 2 . . . . . . . . 1 Hottest 98 | . 85 46 91 86 . . . . . . . . 98 Shots Fired 229 | . 12 2 136 71 . . . . . . . . 8 Gun 208 | . 12 2 125 69 . . . . . . . . . Cannon 17 | . . . 10 . . . . . . . . . 7 Launcher 4 | . . . 1 2 . . . . . . . . 1 Special . | . . . . . . . . . . . . . . Kinetic 186 | . 7 2 125 52 . . . . . . . . . Thermal 39 | . 5 . 10 17 . . . . . . . . 7 Explosive 3 | . . . 1 2 . . . . . . . . . Electromagnetic 1 | . . . . . . . . . . . . . 1 Robot Hit Streak 25 | . 3 2 11 25 . . . . . . . . 3 Robot Miss Streak 4 | . 3 1 4 4 . . . . . . . . 3 Penetration Max . | . . . . . . . . . . . . . . Secondary Targets 5 | . . . 4 1 . . . . . . . . . Max Gunslinging Chain 1 | . . . 1 1 . . . . . . . . . Shots Hit Robots 155 | . 6 1 92 50 . . . . . . . . 6 Core Hits 75 | . 3 . 35 31 . . . . . . . . 6 Critical Kills . | . . . . . . . . . . . . . . Critical Parts Destroyed . | . . . . . . . . . . . . . . Critical Strikes . | . . . . . . . . . . . . . . Melee Attacks 3 | . . . . . . . . . . . . . 3 Impact . | . . . . . . . . . . . . . . Slashing . | . . . . . . . . . . . . . . Piercing 3 | . . . . . . . . . . . . . 3 Sneak Attacks . | . . . . . . . . . . . . . . Combat Hostiles . | . . . . . . . . . . . . . . Follow-up Attacks . | . . . . . . . . . . . . . . Damage Inflicted 3043 | . 103 18 1381 1078 . . . . . . . . 463 Guns 2256 | . 103 18 1279 856 . . . . . . . . . Cannons 204 | . . . 102 . . . . . . . . . 102 Explosions 542 | . . . . 196 . . . . . . . . 346 Melee 5 | . . . . . . . . . . . . . 5 Ramming 36 | . . . . 26 . . . . . . . . 10 Kinetic 1927 | . 62 18 1279 568 . . . . . . . . . Thermal 533 | . 41 . 102 288 . . . . . . . . 102 Explosive 520 | . . . . 196 . . . . . . . . 324 Electromagnetic 22 | . . . . . . . . . . . . . 22 Impact . | . . . . . . . . . . . . . . Slashing . | . . . . . . . . . . . . . . Piercing 5 | . . . . . . . . . . . . . 5 Highest Corruption 6 | . . . . . . . . . . . 1 1 6 Average Corruption 1 | . . . . . . . . . . . 1 1 1 Corruption Purged . | . . . . . . . . . . . . . . Corruption Blocked . | . . . . . . . . . . . . . . Effects 9 | . . . . . . . . . . . 2 . 7 Message Errors 2 | . . . . . . . . . . . . . 2 Heat Flow Errors 3 | . . . . . . . . . . . 2 . 1 Energy Discharges 2 | . . . . . . . . . . . . . 2 Data Loss (minor) 1 | . . . . . . . . . . . . . 1 Data Loss (major) 1 | . . . . . . . . . . . . . 1 Overload Shots . | . . . . . . . . . . . . . . Overflow Damage 30 | . . . . 30 . . . . . . . . . Projectiles . | . . . . . . . . . . . . . . Explosions 30 | . . . . 30 . . . . . . . . . Melee . | . . . . . . . . . . . . . . Knockbacks 1 | . . . . . . . . . . . . . 1 Impact 1 | . . . . . . . . . . . . . 1 Kinetic . | . . . . . . . . . . . . . . Secondary . | . . . . . . . . . . . . . . Self-Inflicted Damage 75 | . . . . 54 . . . . . . . . 21 Shots 2 | . . . . 1 . . . . . . . . 1 Rammed 7 | . . . . 5 . . . . . . . . 2 Targets Rammed 7 | . . . . 5 . . . . . . . . 2 Kicked . | . . . . . . . . . . . . . . Crushed . | . . . . . . . . . . . . . . Highest Temperature 359 | . 54 . 90 117 . 1 . . . . 232 . 359 Average Temperature 52 | . 25 . 23 34 . 1 . . . . 114 . 74 Received Heat Transfer 828 | . 12 . 450 270 . 9 . 9 . 9 . . 69 Siege Activations . | . . . . . . . . . . . . . . Martial Activations . | . . . . . . . . . . . . . . Shielding Activations . | . . . . . . . . . . . . . . Robots Disrupted . | . . . . . . . . . . . . . . Combat Hostiles . | . . . . . . . . . . . . . . Robots Corrupted . | . . . . . . . . . . . . . . Combat Hostiles . | . . . . . . . . . . . . . . Parts Fried . | . . . . . . . . . . . . . . Impact Corruptions . | . . . . . . . . . . . . . . Robots Melted . | . . . . . . . . . . . . . . Combat Hostiles . | . . . . . . . . . . . . . . Parts Melted 1 | . . . . . . . . . . . . . 1 Heat Transferred 1075 | . 111 . 185 629 . . . . . . . . 150 Parts Sabotaged . | . . . . . . . . . . . . . . Parts Stolen . | . . . . . . . . . . . . . . Parts Stripped . | . . . . . . . . . . . . . . Power Chain Reactions . | . . . . . . . . . . . . . . Alert | -11 -10 -9 -9 -8 -7 -7 -7 -6 -6 -6 -5 -5 -5 ------- Run | Yrd Mat Mat Sto Mat Fac Low Low Fac Low Low Fac Was Fac Maximum Alert Level 1 | . . . 1 1 . . . . . . . . . Low Security (%) 93 | 100 100 100 90 74 100 . . 100 . . 100 100 100 Level 1 6 | . . . 9 25 . . . . . . . . . Level 2 . | . . . . . . . . . . . . . . Level 3 . | . . . . . . . . . . . . . . Level 4 . | . . . . . . . . . . . . . . Level 5 . | . . . . . . . . . . . . . . High Security . | . . . . . . . . . . . . . . Max Security . | . . . . . . . . . . . . . . Peak Influence 248 | . 30 . 248 232 75 . . 75 . . 94 2 113 Initial 94 | . . . . 74 75 . . 60 . . 94 2 . Average 60 | . 4 . 84 173 30 . . 18 . . 17 1 26 Influence Increases 1999 | . 37 . 750 427 . 195 . 77 45 210 67 . 191 Destroy 0b10 Robot/C 760 | . 20 . 380 300 . . . . . . . . 60 Destroy 0b10 Robot/NC 70 | . 5 . 40 15 . . . . . . . . 10 Destroy Leader 200 | . 12 . 114 64 . . . . . . . . 10 Allied During Kill 70 | . . . 70 . . . . . . . . . . Successful Hack 67 | . . . 13 . . . . 32 . . 22 . . Disable Machine 60 | . . . 15 30 . . . . . . . . 15 Destroy Structure 67 | . . . 13 18 . . . . . . . . 36 Partial Spotted 45 | . . . 15 . . . . 15 . . 15 . . Lose Combat Pursuer 660 | . . . 90 . . 195 . 30 45 210 30 . 60 Influence Decreases 1932 | . 37 . 572 438 167 76 23 171 42 65 209 8 124 Entered New Map 321 | . . . . 104 92 . 23 36 2 2 56 6 . Time Decay 1271 | . 37 . 332 294 75 56 . 135 40 63 153 2 84 Lost Part 140 | . . . 40 40 . 20 . . . . . . 40 Lost Ally 200 | . . . 200 . . . . . . . . . . Squads Dispatched 15 | . 1 1 3 5 . . . 1 . 1 2 . 1 Investigation 3 | . 1 . . 1 . . . 1 . . . . . Extermination 2 | . . . . . . . . . . . 1 . 1 Reinforcement 4 | . . 1 1 1 . . . . . . 1 . . Assault 5 | . . . 2 2 . . . . . 1 . . . Garrison 1 | . . . . 1 . . . . . . . . . Intercept . | . . . . . . . . . . . . . . Searches Triggered . | . . . . . . . . . . . . . . Construction Impeded . | . . . . . . . . . . . . . . Haulers Reinforced . | . . . . . . . . . . . . . . Active Scanning Responses . | . . . . . . . . . . . . . . Cargo Convoy Interrupts . | . . . . . . . . . . . . . . Stealth | -11 -10 -9 -9 -8 -7 -7 -7 -6 -6 -6 -5 -5 -5 --------- Run | Yrd Mat Mat Sto Mat Fac Low Low Fac Low Low Fac Was Fac Distress Signals 9 | . . . 3 3 . . . 2 . . 1 . . Communications Jammed . | . . . . . . . . . . . . . . Distress Signals . | . . . . . . . . . . . . . . Times Spotted 129 | . 3 1 34 22 . 16 3 7 3 11 4 4 21 Peak Tracking Total 12 | . 3 1 6 5 . 12 3 5 3 10 3 4 9 Tactical Retreats 20 | . . . 4 . . 6 . 1 2 3 1 . 3 Traps | -11 -10 -9 -9 -8 -7 -7 -7 -6 -6 -6 -5 -5 -5 ------- Run | Yrd Mat Mat Sto Mat Fac Low Low Fac Low Low Fac Was Fac Traps Triggered 6 | . 2 . . 1 . . . . . . 1 . 2 Indirectly . | . . . . . . . . . . . . . . Trap Hack Attempts . | . . . . . . . . . . . . . . Triggered . | . . . . . . . . . . . . . . Disarmed . | . . . . . . . . . . . . . . Reprogrammed . | . . . . . . . . . . . . . . Reused . | . . . . . . . . . . . . . . Traps Extracted . | . . . . . . . . . . . . . . Installed . | . . . . . . . . . . . . . . Triggered . | . . . . . . . . . . . . . . Machines | -11 -10 -9 -9 -8 -7 -7 -7 -6 -6 -6 -5 -5 -5 ---------- Run | Yrd Mat Mat Sto Mat Fac Low Low Fac Low Low Fac Was Fac Machines Disabled 4 | . . . 1 2 . . . . . . . . 1 Max in Single Turn 1 | . . . 1 1 . . . . . . . . 1 Garrison Access 2 | . . . 1 1 . . . . . . . . . Machines Repaired . | . . . . . . . . . . . . . . Machines Dismantled . | . . . . . . . . . . . . . . Machines Sabotaged . | . . . . . . . . . . . . . . Overloaded Fab Kills . | . . . . . . . . . . . . . . Hacking | -11 -10 -9 -9 -8 -7 -7 -7 -6 -6 -6 -5 -5 -5 --------- Run | Yrd Mat Mat Sto Mat Fac Low Low Fac Low Low Fac Was Fac Machines Accessed 32 | . 2 1 8 2 1 . . 3 1 1 7 . 6 Terminals 18 | . 2 1 7 1 . . . 2 . . 2 . 3 Fabricators 2 | . . . . . . . . 1 . . 1 . . Repair Stations 4 | . . . . 1 . . . . . . 2 . 1 Recycling Units 2 | . . . . . . . . . . . 2 . . Scanalyzers 2 | . . . . . . . . . . . . . 2 Garrison Access 2 | . . . 1 . 1 . . . . . . . . Total Hacks 57 | . 3 1 18 4 1 . . 6 1 1 13 . 9 Successful 18 | . . . 6 . . . . 4 1 1 5 . 1 Failed 39 | . 3 1 12 4 1 . . 2 . . 8 . 8 Catastrophic 13 | . 2 . 4 1 1 . . . . . 1 . 4 Database Lockouts . | . . . . . . . . . . . . . . Manual 24 | . 3 1 12 2 . . . 3 . . 1 . 2 Terminals 34 | . 3 1 17 2 . . . 4 . . 3 . 4 Fabricators 3 | . . . . . . . . 2 . . 1 . . Repair Stations 10 | . . . . 2 . . . . . . 5 . 3 Recycling Units 4 | . . . . . . . . . . . 4 . . Scanalyzers 2 | . . . . . . . . . . . . . 2 Garrison Access 2 | . . . 1 . 1 . . . . . . . . Terminal Hacks 7 | . . . 4 . . . . 1 1 1 . . . Part Schematic 2 | . . . 1 . . . . 1 . . . . . Open Door 4 | . . . 2 . . . . . 1 1 . . . Zone Layout 1 | . . . 1 . . . . . . . . . . Fabricator Hacks 3 | . . . . . . . . 2 . . 1 . . Load Schematic 2 | . . . . . . . . 1 . . 1 . . Build 1 | . . . . . . . . 1 . . . . . Repair Station Hacks 3 | . . . . . . . . . . . 2 . 1 Scan Component 3 | . . . . . . . . . . . 2 . 1 Recycling Unit Hacks 2 | . . . . . . . . . . . 2 . . Recycle Component 1 | . . . . . . . . . . . 1 . . Retrieve Matter 1 | . . . . . . . . . . . 1 . . Scanalyzer . | . . . . . . . . . . . . . . Garrison Access Hacks 1 | . . . 1 . . . . . . . . . . Seal Access 1 | . . . 1 . . . . . . . . . . Unauthorized Hacks 2 | . . . 1 . . . . 1 . . . . . Terminals 2 | . . . 1 . . . . 1 . . . . . Operators 2 | . . . 1 . . . . 1 . . . . . Fabricators . | . . . . . . . . . . . . . . Repair Stations . | . . . . . . . . . . . . . . Recycling Units . | . . . . . . . . . . . . . . Scanalyzers . | . . . . . . . . . . . . . . Garrison Access . | . . . . . . . . . . . . . . Data Cores Recovered . | . . . . . . . . . . . . . . Used . | . . . . . . . . . . . . . . Hacking Detections 26 | . 2 1 6 2 1 . . 2 . . 6 . 6 Full Trace Events 1 | . . . . . . . . 1 . . . . . Feedback Events . | . . . . . . . . . . . . . . Feedback Blocked . | . . . . . . . . . . . . . . Robot Schematics Acquired . | . . . . . . . . . . . . . . Robots Built . | . . . . . . . . . . . . . . Authchips . | . . . . . . . . . . . . . . Time . | . . . . . . . . . . . . . . Total Robot Build Rating . | . . . . . . . . . . . . . . Part Schematics Acquired 2 | . . . 1 . . . . 1 . . . . . Parts Built 2 | . . . . . . . . 2 . . . . . Authchips . | . . . . . . . . . . . . . . Time 95 | . . . . . . . . 95 . . . . . Total Part Build Rating 10 | . . . . . . . . 10 . . . . . Part Studies Acquired . | . . . . . . . . . . . . . . Parts Repaired . | . . . . . . . . . . . . . . Time . | . . . . . . . . . . . . . . Parts Recycled 1 | . . . . . . . . . . . 1 . . Recycled Matter . | . . . . . . . . . . . . . . Retrieved Matter . | . . . . . . . . . . . . . . Retrieved Components . | . . . . . . . . . . . . . . Parts Scanalyzed . | . . . . . . . . . . . . . . Part Schematics Acquired . | . . . . . . . . . . . . . . Parts Damaged . | . . . . . . . . . . . . . . Bothacking | -11 -10 -9 -9 -8 -7 -7 -7 -6 -6 -6 -5 -5 -5 ------------ Run | Yrd Mat Mat Sto Mat Fac Low Low Fac Low Low Fac Was Fac Used RIF Installer . | . . . . . . . . . . . . . . Robots Hacked . | . . . . . . . . . . . . . . Non-combat . | . . . . . . . . . . . . . . Combat . | . . . . . . . . . . . . . . Robot Hacks Applied . | . . . . . . . . . . . . . . Relay Couplers Released 2 | . . . . 2 . . . . . . . . . Machine Destruction 2 | . . . . 2 . . . . . . . . . Fabnet Peak Effective % . | . . . . . . . . . . . . . . Robots Rewired . | . . . . . . . . . . . . . . Allies Hacked . | . . . . . . . . . . . . . . Hacks Repelled . | . . . . . . . . . . . . . . Allies | -11 -10 -9 -9 -8 -7 -7 -7 -6 -6 -6 -5 -5 -5 -------- Run | Yrd Mat Mat Sto Mat Fac Low Low Fac Low Low Fac Was Fac Total Allies 13 | . . . 12 . . . . . . . . . 1 Largest Group 10 | . . . 10 . . . . . . . . . 1 Highest-Rated Group 88 | . . . 88 . . . . . . . . . 81 Highest-Rated Ally 81 | . . . 31 . . . . . . . . . 81 Total Orders 1 | . . . 1 . . . . . . . . . . ROAM 1 | . . . 1 . . . . . . . . . . Ally Attacks 74 | . . . 74 . . . . . . . . . . Total Damage 676 | . . . 676 . . . . . . . . . . Kills 9 | . . . 9 . . . . . . . . . . Allies Corrupted . | . . . . . . . . . . . . . . Allies Melted . | . . . . . . . . . . . . . . Intel | -11 -10 -9 -9 -8 -7 -7 -7 -6 -6 -6 -5 -5 -5 ------- Run | Yrd Mat Mat Sto Mat Fac Low Low Fac Low Low Fac Was Fac Active Infowar (turns) 4144 | . 27 85 811 647 205 427 13 403 115 153 697 24 537 Optics 4144 | . 27 85 811 647 205 427 13 403 115 153 697 24 537 Sensors 3091 | . . . . 540 205 427 13 403 115 153 697 24 514 IFF 1 | . . . . . . . . 1 . . . . . Terrain 1310 | . . . . . 156 427 13 387 . . 2 . 325 Cloaking 1339 | . . . . . . . . 15 115 153 675 24 357 ECM 7 | . . . 6 . 1 . . . . . . . . Robot Analysis Total . | . . . . . . . . . . . . . . Derelict Logs Recovered 5 | . . . . . . 3 1 . . 1 . . . Drone Launches . | . . . . . . . . . . . . . . Drone Recoveries . | . . . . . . . . . . . . . . Exploration | -11 -10 -9 -9 -8 -7 -7 -7 -6 -6 -6 -5 -5 -5 ------------- Run | Yrd Mat Mat Sto Mat Fac Low Low Fac Low Low Fac Was Fac Turns Passed 4362 | 60 185 85 811 647 205 427 13 403 115 153 697 24 537 Spaces Moved 5701 | 54 175 86 658 322 387 802 42 442 376 367 1173 82 735 Core 93 | 1 . . . . . . . . . . . . 92 Treads 23 | . . . 23 . . . . . . . . . . Legs . | . . . . . . . . . . . . . . Wheels 908 | 53 175 86 311 268 15 . . . . . . . . Hover . | . . . . . . . . . . . . . . Flight 4677 | . . . 324 54 372 802 42 442 376 367 1173 82 643 Fastest Speed 27 | 50 90 90 37 37 28 28 30 30 30 30 29 29 27 Average Speed 42 | 88 90 90 70 82 34 28 30 30 30 30 29 29 42 Slowest Speed 200 | 90 90 90 160 115 95 30 30 30 30 30 30 29 200 Overloaded Moves . | . . . . . . . . . . . . . . Propulsion Burnouts . | . . . . . . . . . . . . . . Robots Hopped 15 | . . . . . 1 . . 2 1 . 6 . 5 Potential Cave-ins 4 | . . . . . . . . . . . . . 4 Cave-ins Triggered . | . . . . . . . . . . . . . . Exploration Rate (%) 32 | 3 31 9 62 32 8 77 8 9 58 42 20 74 15 Regions Visited 13 Branch Regions 5 Pre-discovered Areas 2 | . . . . . . 1 1 . . . . . . Known Exits Taken 7 | . . . . 1 1 1 1 1 1 1 . . . Unknown Exits Taken 4 | 1 1 1 1 . . . . . . . . . . Scrap Searched 4 | . . . . . . 1 . . 2 1 . . . Spaces Dug 12 | . . . 12 . . . . . . . . . . Terrain Destroyed 44 | . . . 12 15 . . . . . . . . 17 Melee . | . . . . . . . . . . . . . . Projectile 4 | . . . . . . . . . . . . . 4 AOE 40 | . . . 12 15 . . . . . . . . 13 Terrain Rammed . | . . . . . . . . . . . . . . Walls Destroyed . | . . . . . . . . . . . . . . Machines Disabled . | . . . . . . . . . . . . . . Actions | -11 -10 -9 -9 -8 -7 -7 -7 -6 -6 -6 -5 -5 -5 --------- Run | Yrd Mat Mat Sto Mat Fac Low Low Fac Low Low Fac Was Fac Total 7408 | 62 190 92 886 638 458 1000 41 710 376 412 1515 81 947 Wait 1367 | . . . 92 230 53 198 . 260 . 36 326 . 172 Move 5661 | 53 174 85 657 322 384 801 41 437 373 366 1161 81 726 Hop 14 | . . . . . 1 . . 2 1 . 6 . 4 Pick Up 45 | 3 4 . 8 7 4 . . 2 1 3 7 . 6 Fast Attach 42 | 6 2 2 9 6 4 1 . 4 . . 3 . 5 Attach 38 | . 1 . 10 6 5 . . . . 1 5 . 10 Detach 35 | . 1 2 12 7 3 . . . . 1 3 . 6 Swap 5 | . . . 2 1 . . . . . . . . 2 Drop 49 | . 1 2 15 9 4 . . 5 1 5 4 . 3 Fire 143 | . 7 1 81 46 . . . . . . . . 8 Melee 3 | . . . . . . . . . . . . . 3 Ram 6 | . . . . 4 . . . . . . . . 2 Kick . | . . . . . . . . . . . . . . Crush . | . . . . . . . . . . . . . . Escape Stasis . | . . . . . . . . . . . . . . Rewire . | . . . . . . . . . . . . . . Trap . | . . . . . . . . . . . . . . Miscellaneous . | . . . . . . . . . . . . . . Route ------- -11/Scrapyard -10/Materials -9/Materials -9/Storage -8/Materials -7/Factory -7/Lower Caves -7/Lower Caves -6/Factory -6/Lower Caves -6/Lower Caves -5/Factory -5/Waste -5/Factory History --------- Turn | Location | Event 22 | -11/Scrapyard | Discovered new exit (range 15) 61 | -11/Scrapyard | Entered Materials 232 | -10/Materials | Discovered new exit (range 10) 246 | -10/Materials | Entered another Materials area 246 | -9/Materials | Evolved 2 slots: Propulsion x1, Utility x1 305 | -9/Materials | Discovered new exit (range 5) 314 | -9/Materials | Build established: Mutant 331 | -9/Materials | Entered Storage 494 | -9/Storage | Lost 4 parts (1p2n1w) 725 | -9/Storage | Met a pair of Derelict thieves 890 | -9/Storage | Assisted by bots powering up and referring to "LRC-V3" 1052 | -9/Storage | Core integrity fell below 50% 1094 | -9/Storage | Discovered new exit (range 7) 1142 | -9/Storage | Entered Materials 1142 | -8/Materials | Evolved 2 slots: Propulsion x1, Utility x1 1159 | -8/Materials | Garrison activated, responded to threat 1765 | -8/Materials | Build established: Scavenger-Skirmisher 1775 | -8/Materials | Discovered new exit (range 11) 1785 | -8/Materials | Identified exit to Factory 1789 | -8/Materials | Entered Factory 1789 | -7/Factory | Evolved 2 slots: Utility x2 1850 | -7/Factory | Discovered new exit (range 17) 1981 | -7/Factory | Identified exit to Lower Caves 1994 | -7/Factory | Entered Lower Caves 2005 | -7/Lower Caves | Identified exit to Lower Caves 2005 | -7/Lower Caves | Spotted B-75 Beast 2085 | -7/Lower Caves | Build established: Scout 2194 | -7/Lower Caves | Learned Factory emergency access door positions 2314 | -7/Lower Caves | Encountered a Warlord checkpoint 2356 | -7/Lower Caves | Attracted the attention of an 0b10 outpost 2364 | -7/Lower Caves | Learned location of Zion (-7) 2374 | -7/Lower Caves | Lost 3 allies 2421 | -7/Lower Caves | Entered another Lower Caves area 2423 | -7/Lower Caves | Learned location of Extension (-6) 2432 | -7/Lower Caves | Discovered new exit (range 7) 2434 | -7/Lower Caves | Identified exit to Factory 2434 | -7/Lower Caves | Entered Factory 2434 | -6/Factory | Evolved 2 slots: Propulsion x1, Utility x1 2624 | -6/Factory | Discovered new exit (range 5) 2743 | -6/Factory | Fabricated Cloaking Device? 2837 | -6/Factory | Identified exit to Lower Caves 2837 | -6/Factory | Entered Lower Caves 2843 | -6/Lower Caves | Encountered a Warlord checkpoint 2930 | -6/Lower Caves | Discovered new exit (range 13) 2933 | -6/Lower Caves | Identified exit to Lower Caves 2952 | -6/Lower Caves | Entered another Lower Caves area 2989 | -6/Lower Caves | Learned Factory emergency access door positions 3019 | -6/Lower Caves | Attracted the attention of an 0b10 outpost 3032 | -6/Lower Caves | Found Prototype Device 3096 | -6/Lower Caves | Discovered new exit (range 13) 3100 | -6/Lower Caves | Identified exit to Factory 3105 | -6/Lower Caves | Entered Factory 3105 | -5/Factory | Evolved 2 slots: Power x1, Utility x1 3108 | -5/Factory | Identified Heart of Steel 3802 | -5/Factory | Sucked down chute 3802 | -5/Factory | Entered Waste 3805 | -5/Waste | Spotted C-40 Crusher 3806 | -5/Waste | Spotted C-40 Crusher 3808 | -5/Waste | Spotted C-40 Crusher 3810 | -5/Waste | Spotted C-40 Crusher 3812 | -5/Waste | Spotted C-40 Crusher 3820 | -5/Waste | Spotted C-40 Crusher 3822 | -5/Waste | Discovered new exit (range 13) 3826 | -5/Waste | Identified exit to Factory 3826 | -5/Waste | Entered Factory 3949 | -5/Factory | Spotted B-75 Beast 4226 | -5/Factory | Lost 10 parts (2p4n3u1w) 4342 | -5/Factory | Core integrity fell below 50% 4354 | -5/Factory | Core integrity fell below 20% 4363 | -5/Factory | Destroyed by P-70 Sage with Tesla Rifle Last Messages --------------- 04310_ Imp. Sensor Array tumbles out of TF Node. 04310_ Imp. Signal Interpreter tumbles out of TF Node. 04313_ VTOL Module destroyed. 04314_ Slammed into K-01 Serf. 04316_ P-70 Sage resets R-10 Processor, system corruption cleaned. 04317_ Dropped Sml. Storage Unit. 04337_ System corrupted: Component data lost. 04341_ Nuclear Reactor explodes. 04341_ Imp. Flight Unit destroyed. 04341_ S-27 Virus destroyed. 04341_ Nuclear Reactor explodes. 04341_ Dirty Datajack destroyed. 04341_ P-70 Sage destroyed. 04341_ Adv. Sensor Array destroyed. 04342_ G-50 Soldier destroyed. 04360_ ALERT: Potential suspicious activity detected, Programmers report to Factory Zone 9N. Map ----- +----------------------------------------------------+ | ????????????????????????????????????????# #??##### | | ??????????????????????????????????????### ### | | ??????????????????????????????????????# # *** | | ???????????????????????????????????#+## ! # *** | | ???????????????????????????????????# + *** | | ???????????????????????????????????# ## | | ???????????????????????????????????#??# *% % ! | | ??????????????????????????????????????## | | ????????????????????????###?????##?????# %* | | ????????????????????????# ???? ?????# / =% | | ????????????????????????# ?? ?????# ! | | ????????????????????????# | ?" "?????# | | ????????????????????????# "" ""??#?# | | ????????????????????????#! """ """ ### | | ????????????????????????# """ """ ##" H | | ????????????????????????# """ """ ### | | ????????????????????????# + | | ????????????????????????# """ #### # | | ????????????????????????? Y" #??# ### ## # | | ??????????????????????????? """ #??# #?? #?## | | ????????????????????????????? ???# #???#??? | | ??????????????#################+##+#????# #??????? | | ??????????????# / ######+######## | | ??????????????# s# # | | ??????????????#!! # # | | ??????????????#!! @s# # """ """ | | ??????????????# p/ / """ """ !!* | | ??????????????# #p # """ """ !!* | | ??????????????# # k# !** | | ??????????????# # R # | | ??????????????# # ############### | | ??????????????# # ????????????? | | ??????????????# # ??????????? | | ??????????????# # t ?????????? | | ??????????????############## ?????????? | | ???????????????????????????# ?????????? | | ???????????????????????????# ??????????? | | ???????????????????????????# ???????????? | | ???????????????????????????# ###???????????? | | ???????????????????????????# ??????????????? | | ???????????????????????????# ??????????????? | | ?????????????????????????????? ??????????????? | | ???????????????????????????????? ??????????????? | | ?????????????????????????????????????????????????? | | ?????????????????????????????????????????????????? | | ?????????????????????????????????????????????????? | | ?????????????????????????????????????????????????? | | ?????????????????????????????????????????????????? | | ?????????????????????????????????????????????????? | | ?????????????????????????????????????????????????? | +----------------------------------------------------+ Best States ------------- Heat Dissipation 40 Energy Generation 29 Energy Capacity 330 Matter Stores 300 Matter Capacity 300 Sight Range 18 Robot Scan Range 16 Terrain Scan Range 20 Terrain Scan Density 85 ECM Strength 1 Cloak Strength 2 Armor Coverage 225 Evasion (%) 64 Recoil Reduction 1 Defensive Hacking 10 Item Schematics ----------------- Sml. Storage Unit | -9/Storage | Hacked Cloaking Device | -6/Factory | Hacked Robot Schematics ------------------ None Fabricated ------------ Cloaking Device | x2 | -6/Factory Repaired ---------- Nothing Studied --------- None Alien Tech Used ----------------- None Achievements -------------- None Challenges ------------ None Game ------ Seed MultinovaNetworkRailcannon Manual? 0 Play Time 01:31:23 Cumulative 38.4 hours Start 2025.11.28 @ 18:57:43 End 2025.11.28 @ 20:29:14 Sessions 1 Manual Loads 0 Difficulty Rogue Special Mode None Game No. 40 Rogue 40 Adventurer 0 Explorer 0 Win Type - Total 0 Types 0/0/0/0/0/0/0/0/0/0 Lore% 18 Gallery% 27 Achievement% 23 Wizard Run 0 Options --------- Layout 1 ASCII 0 Keyboard 1 Movement Numpad Keybinds 0 Fullscreen 1 Font 24/Smallcaps Map View 50x35 Zoom Use 0% Tactical HUD 1 Map Filters NONE Filters NONE Steam 1 RUN: 009fe7e2-51e4-4ac4-9bdb-cb5dd496e3a3